[Event "Titled Tuesday Blitz October 5 2021"]
[White "Goncalves, Ivan Mesquita V"]
[Black "Timmermans, Mark"]
[WhiteFideId "2114224"]
[BlackFideId "1026399"]
[WhiteElo "2656"]
[BlackElo "2820"]
[Result "1-0"]
[Round "09"]
[TimeControl "180+1"]
[Date "2021.10.05"]
[WhiteClock "0:00:43"]
[BlackClock "0:00:49"]

1. d4 {[%clk 0:03:00]}  Nf6 {[%clk 0:02:59]} 2. Nf3 {[%clk 0:03:01]}  e6 {[%clk 0:02:59]} 3. Bf4 {[%clk 0:03:01]}  d5 {[%clk 0:03:00]} 4. e3 {[%clk 0:03:01]}  Bd6 {[%clk 0:03:01]} 5. Nbd2 {[%clk 0:03:01]}  O-O {[%clk 0:03:00]} 6. Bd3 {[%clk 0:03:01]}  b6 {[%clk 0:03:00]} 7. Qe2 {[%clk 0:03:00]}  Bb7 {[%clk 0:03:00]} 8. Bg5 {[%clk 0:02:58]}  Nbd7 {[%clk 0:02:55]} 9. h4 {[%clk 0:02:49]}  c5 {[%clk 0:02:46]} 10. c3 {[%clk 0:02:47]}  Qc7 {[%clk 0:02:35]} 11. Bxf6 {[%clk 0:02:11]}  Nxf6 {[%clk 0:02:33]} 12. Ba6 {[%clk 0:01:40]}  c4 {[%clk 0:02:05]} 13. Bxb7 {[%clk 0:01:39]}  Qxb7 {[%clk 0:02:05]} 14. h5 {[%clk 0:01:35]}  b5 {[%clk 0:02:03]} 15. h6 {[%clk 0:01:33]}  g6 {[%clk 0:02:04]} 16. a3 {[%clk 0:01:33]}  a5 {[%clk 0:02:04]} 17. Ng5 {[%clk 0:01:31]}  Ne4 {[%clk 0:01:54]} 18. Ndxe4 {[%clk 0:01:17]}  dxe4 {[%clk 0:01:53]} 19. Qg4 {[%clk 0:01:14]}  f5 {[%clk 0:01:53]} 20. Qe2 {[%clk 0:01:11]}  Qd5 {[%clk 0:01:41]} 21. g3 {[%clk 0:01:10]}  b4 {[%clk 0:01:17]} 22. axb4 {[%clk 0:01:10]}  axb4 {[%clk 0:01:18]} 23. O-O {[%clk 0:01:11]}  b3 {[%clk 0:01:09]} 24. Kg2 {[%clk 0:01:04]}  Be7 {[%clk 0:01:00]} 25. Nh3 {[%clk 0:00:59]}  g5 {[%clk 0:01:01]} 26. Qh5 {[%clk 0:00:54]}  f4 {[%clk 0:00:49]} 27. gxf4 {[%clk 0:00:50]}  gxf4 {[%clk 0:00:49]} 28. Qg4+ {[%clk 0:00:43]}  Kh8 {[%clk 0:00:49]} 29. Qg7# {[%clk 0:00:43]} 1-0


[Site "https://www.chess.com"]

[Event "Titled Tuesday Blitz October 5 2021"]
[White "Gracia Alvarez, Gerardo Antonio"]
[Black "Tsyhanchuk, Stanislav"]
[WhiteFideId "5109124"]
[BlackFideId "13505130"]
[WhiteElo "2148"]
[BlackElo "2078"]
[Result "0-1"]
[Round "09"]
[TimeControl "180+1"]
[Date "2021.10.05"]
[WhiteClock "0:00:01"]
[BlackClock "0:00:04"]

1. e4 {[%clk 0:03:00]}  c5 {[%clk 0:02:55]} 2. Nf3 {[%clk 0:03:00]}  d6 {[%clk 0:02:55]} 3. Bb5+ {[%clk 0:03:01]}  Nc6 {[%clk 0:02:54]} 4. O-O {[%clk 0:03:00]}  Bd7 {[%clk 0:02:54]} 5. Re1 {[%clk 0:03:00]}  a6 {[%clk 0:02:50]} 6. Bf1 {[%clk 0:03:01]}  Nf6 {[%clk 0:02:49]} 7. c3 {[%clk 0:03:00]}  Bg4 {[%clk 0:02:47]} 8. d4 {[%clk 0:03:00]}  cxd4 {[%clk 0:02:46]} 9. cxd4 {[%clk 0:03:01]}  Bxf3 {[%clk 0:02:46]} 10. gxf3 {[%clk 0:03:02]}  g6 {[%clk 0:02:44]} 11. Be3 {[%clk 0:02:56]}  Bg7 {[%clk 0:02:43]} 12. Nc3 {[%clk 0:02:50]}  O-O {[%clk 0:02:40]} 13. Rc1 {[%clk 0:02:43]}  Nh5 {[%clk 0:02:36]} 14. d5 {[%clk 0:02:33]}  Ne5 {[%clk 0:02:31]} 15. f4 {[%clk 0:02:32]}  Nd7 {[%clk 0:02:27]} 16. Be2 {[%clk 0:02:31]}  Nhf6 {[%clk 0:02:23]} 17. Qb3 {[%clk 0:02:16]}  b5 {[%clk 0:02:19]} 18. a4 {[%clk 0:02:13]}  bxa4 {[%clk 0:02:05]} 19. Qxa4 {[%clk 0:02:12]}  e5 {[%clk 0:01:54]} 20. dxe6 {[%clk 0:02:02]}  fxe6 {[%clk 0:01:54]} 21. Red1 {[%clk 0:02:01]}  Qe7 {[%clk 0:01:48]} 22. Qa3 {[%clk 0:02:00]}  Nc5 {[%clk 0:01:33]} 23. e5 {[%clk 0:02:00]}  Nfe4 {[%clk 0:01:16]} 24. exd6 {[%clk 0:01:50]}  Qh4 {[%clk 0:00:48]} 25. Bxc5 {[%clk 0:01:45]}  Bxc3 {[%clk 0:00:40]} 26. bxc3 {[%clk 0:01:34]}  Rxf4 {[%clk 0:00:40]} 27. Be3 {[%clk 0:00:52]}  Rxf2 {[%clk 0:00:20]} 28. Bxf2 {[%clk 0:00:50]}  Qxf2+ {[%clk 0:00:21]} 29. Kh1 {[%clk 0:00:50]}  Qxe2 {[%clk 0:00:21]} 30. Rf1 {[%clk 0:00:42]}  Nf2+ {[%clk 0:00:16]} 31. Rxf2 {[%clk 0:00:40]}  Qxf2 {[%clk 0:00:16]} 32. Qb3 {[%clk 0:00:28]}  Qf3+ {[%clk 0:00:15]} 33. Kg1 {[%clk 0:00:28]}  Qe3+ {[%clk 0:00:14]} 34. Kg2 {[%clk 0:00:29]}  Qd2+ {[%clk 0:00:14]} 35. Kg3 {[%clk 0:00:28]}  Qe3+ {[%clk 0:00:09]} 36. Kg2 {[%clk 0:00:26]}  Rf8 {[%clk 0:00:03]} 37. Qc2 {[%clk 0:00:18]}  Qf3+ {[%clk 0:00:03]} 38. Kg1 {[%clk 0:00:18]}  Qe3+ {[%clk 0:00:03]} 39. Kh1 {[%clk 0:00:18]}  Qf3+ {[%clk 0:00:03]} 40. Qg2 {[%clk 0:00:17]}  Qe3 {[%clk 0:00:04]} 41. Rg1 {[%clk 0:00:13]}  Rf2 {[%clk 0:00:04]} 42. Qa8+ {[%clk 0:00:08]}  Kg7 {[%clk 0:00:04]} 43. Qb7+ {[%clk 0:00:08]}  Kh6 {[%clk 0:00:04]} 44. d7 {[%clk 0:00:01]}  Qf4 {[%clk 0:00:04]} 0-1


[Site "https://www.chess.com"]

[Event "Titled Tuesday Blitz October 5 2021"]
[White "Gubajdullin, Alexei"]
[Black "Kostiukov, Alexandr"]
[WhiteFideId "4141202"]
[BlackFideId "14108100"]
[WhiteElo "2268"]
[BlackElo "2227"]
[Result "1-0"]
[Round "09"]
[TimeControl "180+1"]
[Date "2021.10.05"]
[WhiteClock "0:00:45"]
[BlackClock "0:00:04"]

1. d4 {[%clk 0:03:00]}  g6 {[%clk 0:02:59]} 2. Bf4 {[%clk 0:03:00]}  Bg7 {[%clk 0:02:55]} 3. e3 {[%clk 0:03:00]}  d6 {[%clk 0:02:55]} 4. Nf3 {[%clk 0:03:00]}  Nc6 {[%clk 0:02:54]} 5. Bc4 {[%clk 0:02:59]}  e5 {[%clk 0:02:37]} 6. dxe5 {[%clk 0:02:54]}  dxe5 {[%clk 0:02:36]} 7. Qxd8+ {[%clk 0:02:51]}  Kxd8 {[%clk 0:02:36]} 8. Bg3 {[%clk 0:02:41]}  f6 {[%clk 0:02:37]} 9. Nc3 {[%clk 0:02:41]}  Bd7 {[%clk 0:02:20]} 10. O-O-O {[%clk 0:02:40]}  Kc8 {[%clk 0:02:18]} 11. Rd2 {[%clk 0:02:21]}  Nge7 {[%clk 0:01:43]} 12. Rhd1 {[%clk 0:02:20]}  Rd8 {[%clk 0:01:27]} 13. Rxd7 {[%clk 0:02:18]}  Rxd7 {[%clk 0:01:27]} 14. Be6 {[%clk 0:02:18]}  Nb8 {[%clk 0:01:24]} 15. Ne4 {[%clk 0:02:08]}  b6 {[%clk 0:01:10]} 16. Nxf6 {[%clk 0:01:23]}  Bxf6 {[%clk 0:01:06]} 17. Bxe5 {[%clk 0:01:23]}  Ng8 {[%clk 0:00:14]} 18. g4 {[%clk 0:01:23]}  Kd8 {[%clk 0:00:12]} 19. Bxd7 {[%clk 0:01:21]}  Nxd7 {[%clk 0:00:11]} 20. g5 {[%clk 0:01:20]}  Be7 {[%clk 0:00:09]} 21. h4 {[%clk 0:01:18]}  Ke8 {[%clk 0:00:09]} 22. Bxc7 {[%clk 0:01:17]}  Rc8 {[%clk 0:00:09]} 23. Bf4 {[%clk 0:01:16]}  Nc5 {[%clk 0:00:08]} 24. Nd4 {[%clk 0:01:13]}  Kf7 {[%clk 0:00:07]} 25. f3 {[%clk 0:01:10]}  Ne6 {[%clk 0:00:08]} 26. Nxe6 {[%clk 0:01:09]}  Kxe6 {[%clk 0:00:09]} 27. e4 {[%clk 0:01:04]}  Rd8 {[%clk 0:00:09]} 28. Rd3 {[%clk 0:00:59]}  Rxd3 {[%clk 0:00:08]} 29. cxd3 {[%clk 0:00:59]}  Bd6 {[%clk 0:00:09]} 30. Be3 {[%clk 0:00:58]}  Bg3 {[%clk 0:00:08]} 31. d4 {[%clk 0:00:55]}  Bxh4 {[%clk 0:00:07]} 32. d5+ {[%clk 0:00:56]}  Kd7 {[%clk 0:00:07]} 33. Kd2 {[%clk 0:00:50]}  Ne7 {[%clk 0:00:05]} 34. Kd3 {[%clk 0:00:50]}  Be1 {[%clk 0:00:04]} 35. Kc4 {[%clk 0:00:45]} 1-0


[Site "https://www.chess.com"]

[Event "Titled Tuesday Blitz October 5 2021"]
[White "Hambleton, Aman"]
[Black "Weetik, Vjacheslav"]
[WhiteFideId "2606577"]
[BlackFideId "4153472"]
[WhiteElo "2552"]
[BlackElo "2469"]
[Result "1-0"]
[Round "09"]
[TimeControl "180+1"]
[Date "2021.10.05"]
[WhiteClock "0:00:03"]
[BlackClock "0:00:01"]

1. d4 {[%clk 0:03:00]}  d5 {[%clk 0:02:59]} 2. Bf4 {[%clk 0:02:59]}  Nf6 {[%clk 0:02:58]} 3. e3 {[%clk 0:02:58]}  c5 {[%clk 0:02:59]} 4. c3 {[%clk 0:02:58]}  Nc6 {[%clk 0:02:59]} 5. Nd2 {[%clk 0:02:58]}  Qb6 {[%clk 0:02:59]} 6. Qb3 {[%clk 0:02:57]}  c4 {[%clk 0:02:59]} 7. Qc2 {[%clk 0:02:56]}  Nh5 {[%clk 0:02:59]} 8. Bg3 {[%clk 0:01:49]}  g6 {[%clk 0:02:54]} 9. e4 {[%clk 0:01:48]}  e6 {[%clk 0:02:50]} 10. Be2 {[%clk 0:01:40]}  Nxg3 {[%clk 0:02:47]} 11. hxg3 {[%clk 0:01:41]}  Bd7 {[%clk 0:02:32]} 12. Ngf3 {[%clk 0:01:41]}  Bg7 {[%clk 0:02:30]} 13. g4 {[%clk 0:01:21]}  O-O-O {[%clk 0:02:01]} 14. g5 {[%clk 0:01:12]}  h6 {[%clk 0:01:47]} 15. O-O-O {[%clk 0:00:54]}  Kb8 {[%clk 0:01:46]} 16. Kb1 {[%clk 0:00:50]}  h5 {[%clk 0:01:35]} 17. Nf1 {[%clk 0:00:40]}  dxe4 {[%clk 0:01:18]} 18. N3d2 {[%clk 0:00:40]}  Na5 {[%clk 0:01:08]} 19. Ne3 {[%clk 0:00:36]}  Rc8 {[%clk 0:00:53]} 20. Nxe4 {[%clk 0:00:29]}  Bb5 {[%clk 0:00:41]} 21. f4 {[%clk 0:00:27]}  Rhd8 {[%clk 0:00:26]} 22. g4 {[%clk 0:00:26]}  hxg4 {[%clk 0:00:25]} 23. Rh7 {[%clk 0:00:27]}  Bf8 {[%clk 0:00:22]} 24. Rxf7 {[%clk 0:00:25]}  Qa6 {[%clk 0:00:21]} 25. Rh1 {[%clk 0:00:18]}  Nc6 {[%clk 0:00:21]} 26. Rhh7 {[%clk 0:00:16]}  Ka8 {[%clk 0:00:05]} 27. Bxg4 {[%clk 0:00:11]}  Rb8 {[%clk 0:00:01]} 28. Bxe6 {[%clk 0:00:11]}  Ba4 {[%clk 0:00:02]} 29. Qe2 {[%clk 0:00:11]}  Rxd4 {[%clk 0:00:02]} 30. Bxc4 {[%clk 0:00:04]}  Rxc4 {[%clk 0:00:01]} 31. Qxc4 {[%clk 0:00:04]}  Bb5 {[%clk 0:00:02]} 32. Qd5 {[%clk 0:00:02]}  Bd3+ {[%clk 0:00:02]} 33. Kc1 {[%clk 0:00:03]}  Rd8 {[%clk 0:00:01]} 34. Rd7 {[%clk 0:00:03]} 1-0


[Site "https://www.chess.com"]

[Event "Titled Tuesday Blitz October 5 2021"]
[White "Hamidi, Amir Mohammad"]
[Black "Onyshchuk, Volodymyr"]
[WhiteFideId "12563285"]
[BlackFideId "14114038"]
[WhiteElo "2711"]
[BlackElo "2848"]
[Result "0-1"]
[Round "09"]
[TimeControl "180+1"]
[Date "2021.10.05"]
[WhiteClock "0:02:16"]
[BlackClock "0:02:19"]

1. d4 {[%clk 0:02:53]}  d6 {[%clk 0:02:59]} 2. c4 {[%clk 0:02:53]}  e5 {[%clk 0:02:59]} 3. Nc3 {[%clk 0:02:52]}  exd4 {[%clk 0:02:58]} 4. Qxd4 {[%clk 0:02:53]}  Nc6 {[%clk 0:02:58]} 5. Qd2 {[%clk 0:02:51]}  Nf6 {[%clk 0:02:58]} 6. b3 {[%clk 0:02:51]}  a5 {[%clk 0:02:58]} 7. Bb2 {[%clk 0:02:51]}  a4 {[%clk 0:02:58]} 8. Nxa4 {[%clk 0:02:49]}  d5 {[%clk 0:02:58]} 9. cxd5 {[%clk 0:02:47]}  Ne4 {[%clk 0:02:36]} 10. Qe3 {[%clk 0:02:33]}  Rxa4 {[%clk 0:02:31]} 11. bxa4 {[%clk 0:02:29]}  Bb4+ {[%clk 0:02:30]} 12. Kd1 {[%clk 0:02:19]}  Qxd5+ {[%clk 0:02:29]} 13. Kc2 {[%clk 0:02:19]}  O-O {[%clk 0:02:27]} 14. Rd1 {[%clk 0:02:19]}  Qxa2 {[%clk 0:02:19]} 15. Qxe4 {[%clk 0:02:16]}  Qxa4+ {[%clk 0:02:19]} 0-1


[Site "https://www.chess.com"]

[Event "Titled Tuesday Blitz October 5 2021"]
[White "Hasman, Cengiz"]
[Black "Shkapenko, Pavel"]
[WhiteFideId "413364"]
[BlackFideId "4151933"]
[WhiteElo "2020"]
[BlackElo "2386"]
[Result "0-1"]
[Round "09"]
[TimeControl "180+1"]
[Date "2021.10.05"]
[WhiteClock "0:00:04"]
[BlackClock "0:00:10"]

1. d4 {[%clk 0:03:00]}  Nf6 {[%clk 0:02:59]} 2. c4 {[%clk 0:03:00]}  e6 {[%clk 0:03:00]} 3. Bg5 {[%clk 0:03:00]}  Bb4+ {[%clk 0:03:00]} 4. Nd2 {[%clk 0:02:59]}  h6 {[%clk 0:02:56]} 5. Bh4 {[%clk 0:02:59]}  g5 {[%clk 0:02:56]} 6. Bg3 {[%clk 0:02:59]}  Ne4 {[%clk 0:02:56]} 7. Nf3 {[%clk 0:03:00]}  g4 {[%clk 0:02:57]} 8. a3 {[%clk 0:03:00]}  Nxd2 {[%clk 0:02:53]} 9. Nxd2 {[%clk 0:03:00]}  Be7 {[%clk 0:02:51]} 10. e4 {[%clk 0:02:59]}  h5 {[%clk 0:02:51]} 11. e5 {[%clk 0:02:37]}  d6 {[%clk 0:02:44]} 12. Ne4 {[%clk 0:02:25]}  Nc6 {[%clk 0:02:43]} 13. exd6 {[%clk 0:02:10]}  cxd6 {[%clk 0:02:33]} 14. c5 {[%clk 0:01:45]}  dxc5 {[%clk 0:02:28]} 15. dxc5 {[%clk 0:01:45]}  Qxd1+ {[%clk 0:02:18]} 16. Rxd1 {[%clk 0:01:44]}  e5 {[%clk 0:02:19]} 17. Bb5 {[%clk 0:01:32]}  f6 {[%clk 0:02:09]} 18. h4 {[%clk 0:01:28]}  Be6 {[%clk 0:02:01]} 19. b4 {[%clk 0:01:17]}  Kf7 {[%clk 0:01:58]} 20. Nd6+ {[%clk 0:01:09]}  Bxd6 {[%clk 0:01:56]} 21. Rxd6 {[%clk 0:01:10]}  Nd4 {[%clk 0:01:55]} 22. Bd7 {[%clk 0:00:47]}  Rad8 {[%clk 0:01:42]} 23. Bxe6+ {[%clk 0:00:45]}  Nxe6 {[%clk 0:01:43]} 24. O-O {[%clk 0:00:38]}  Rxd6 {[%clk 0:01:42]} 25. cxd6 {[%clk 0:00:39]}  Rd8 {[%clk 0:01:41]} 26. Rd1 {[%clk 0:00:40]}  Rd7 {[%clk 0:01:33]} 27. f3 {[%clk 0:00:37]}  gxf3 {[%clk 0:01:32]} 28. gxf3 {[%clk 0:00:38]}  Ng7 {[%clk 0:01:25]} 29. Bf2 {[%clk 0:00:35]}  b6 {[%clk 0:01:22]} 30. a4 {[%clk 0:00:35]}  Nf5 {[%clk 0:01:06]} 31. a5 {[%clk 0:00:35]}  bxa5 {[%clk 0:01:06]} 32. bxa5 {[%clk 0:00:36]}  Ke6 {[%clk 0:01:06]} 33. a6 {[%clk 0:00:30]}  Nxd6 {[%clk 0:01:05]} 34. Rb1 {[%clk 0:00:25]}  Rc7 {[%clk 0:00:47]} 35. Rb8 {[%clk 0:00:19]}  Rc6 {[%clk 0:00:45]} 36. Rh8 {[%clk 0:00:18]}  Rxa6 {[%clk 0:00:42]} 37. Rxh5 {[%clk 0:00:18]}  Nf7 {[%clk 0:00:41]} 38. Rh7 {[%clk 0:00:17]}  Ra2 {[%clk 0:00:39]} 39. h5 {[%clk 0:00:17]}  a6 {[%clk 0:00:39]} 40. h6 {[%clk 0:00:16]}  Rc2 {[%clk 0:00:38]} 41. Be3 {[%clk 0:00:16]}  Rc8 {[%clk 0:00:33]} 42. Rg7 {[%clk 0:00:15]}  Rh8 {[%clk 0:00:28]} 43. h7 {[%clk 0:00:15]}  f5 {[%clk 0:00:26]} 44. Bd2 {[%clk 0:00:12]}  Kf6 {[%clk 0:00:26]} 45. Rg8 {[%clk 0:00:11]}  Rxh7 {[%clk 0:00:26]} 46. Ra8 {[%clk 0:00:12]}  f4 {[%clk 0:00:25]} 47. Rxa6+ {[%clk 0:00:12]}  Kf5 {[%clk 0:00:25]} 48. Bc3 {[%clk 0:00:11]}  Ng5 {[%clk 0:00:24]} 49. Kg2 {[%clk 0:00:10]}  Rc7 {[%clk 0:00:24]} 50. Ra3 {[%clk 0:00:09]}  Rc4 {[%clk 0:00:22]} 51. Rb3 {[%clk 0:00:08]}  Ra4 {[%clk 0:00:19]} 52. Rb5 {[%clk 0:00:06]}  Ra3 {[%clk 0:00:17]} 53. Rxe5+ {[%clk 0:00:05]}  Kg6 {[%clk 0:00:18]} 54. Rc5 {[%clk 0:00:02]}  Ra2+ {[%clk 0:00:17]} 55. Kf1 {[%clk 0:00:02]}  Nxf3 {[%clk 0:00:17]} 56. Rc6+ {[%clk 0:00:03]}  Kf5 {[%clk 0:00:16]} 57. Rc5+ {[%clk 0:00:03]}  Kg4 {[%clk 0:00:16]} 58. Rc8 {[%clk 0:00:02]}  Nh2+ {[%clk 0:00:15]} 59. Ke1 {[%clk 0:00:01]}  Nf3+ {[%clk 0:00:15]} 60. Kf1 {[%clk 0:00:01]}  Ng5 {[%clk 0:00:15]} 61. Ke1 {[%clk 0:00:02]}  Ne4 {[%clk 0:00:15]} 62. Kf1 {[%clk 0:00:03]}  Rc2 {[%clk 0:00:14]} 63. Rg8+ {[%clk 0:00:02]}  Kf3 {[%clk 0:00:14]} 64. Be1 {[%clk 0:00:03]}  Rc1 {[%clk 0:00:11]} 65. Rf8 {[%clk 0:00:03]}  Ng3+ {[%clk 0:00:11]} 66. Kg1 {[%clk 0:00:04]}  Rxe1+ {[%clk 0:00:11]} 67. Kh2 {[%clk 0:00:04]}  Rh1# {[%clk 0:00:10]} 0-1


[Site "https://www.chess.com"]

[Event "Titled Tuesday Blitz October 5 2021"]
[White "Hjartarson, Johann"]
[Black "Vovk, Orest"]
[WhiteFideId "2300044"]
[BlackFideId "14113490"]
[WhiteElo "2502"]
[BlackElo "2203"]
[Result "0-1"]
[Round "09"]
[TimeControl "180+1"]
[Date "2021.10.05"]
[WhiteClock "0:00:44"]
[BlackClock "0:00:10"]

1. c4 {[%clk 0:03:00]}  g5 {[%clk 0:02:53]} 2. d4 {[%clk 0:02:59]}  h6 {[%clk 0:02:51]} 3. Nc3 {[%clk 0:02:58]}  Bg7 {[%clk 0:02:51]} 4. e4 {[%clk 0:02:55]}  c5 {[%clk 0:02:51]} 5. Nge2 {[%clk 0:02:50]}  cxd4 {[%clk 0:02:50]} 6. Nxd4 {[%clk 0:02:50]}  Nc6 {[%clk 0:02:50]} 7. Be3 {[%clk 0:02:49]}  d6 {[%clk 0:02:49]} 8. Be2 {[%clk 0:02:49]}  Nf6 {[%clk 0:02:28]} 9. O-O {[%clk 0:02:48]}  Nd7 {[%clk 0:02:26]} 10. Nf5 {[%clk 0:02:46]}  Bxc3 {[%clk 0:02:22]} 11. bxc3 {[%clk 0:02:45]}  Nde5 {[%clk 0:02:22]} 12. f4 {[%clk 0:02:35]}  gxf4 {[%clk 0:02:18]} 13. Rxf4 {[%clk 0:02:29]}  Bxf5 {[%clk 0:02:16]} 14. exf5 {[%clk 0:02:26]}  Qa5 {[%clk 0:02:10]} 15. Qb3 {[%clk 0:02:20]}  O-O-O {[%clk 0:02:00]} 16. Rb1 {[%clk 0:02:18]}  b6 {[%clk 0:01:27]} 17. Rh4 {[%clk 0:02:14]}  Nd7 {[%clk 0:01:08]} 18. Qb5 {[%clk 0:02:09]}  Qxb5 {[%clk 0:01:01]} 19. cxb5 {[%clk 0:02:09]}  Nce5 {[%clk 0:01:00]} 20. Rxh6 {[%clk 0:02:05]}  Rxh6 {[%clk 0:00:58]} 21. Bxh6 {[%clk 0:02:04]}  Kb8 {[%clk 0:00:54]} 22. Be3 {[%clk 0:02:02]}  Rc8 {[%clk 0:00:47]} 23. Bd4 {[%clk 0:02:01]}  Nc5 {[%clk 0:00:47]} 24. h4 {[%clk 0:01:58]}  Ne4 {[%clk 0:00:45]} 25. Rc1 {[%clk 0:01:54]}  Ng3 {[%clk 0:00:44]} 26. Kf2 {[%clk 0:01:50]}  Nxf5 {[%clk 0:00:41]} 27. Bxe5 {[%clk 0:01:42]}  dxe5 {[%clk 0:00:42]} 28. Bg4 {[%clk 0:01:42]}  e6 {[%clk 0:00:42]} 29. Bxf5 {[%clk 0:01:31]}  exf5 {[%clk 0:00:43]} 30. h5 {[%clk 0:01:29]}  Rh8 {[%clk 0:00:43]} 31. Rh1 {[%clk 0:01:29]}  Kc7 {[%clk 0:00:43]} 32. Kf3 {[%clk 0:01:28]}  Kd6 {[%clk 0:00:40]} 33. g4 {[%clk 0:01:11]}  fxg4+ {[%clk 0:00:32]} 34. Kxg4 {[%clk 0:01:11]}  Ke6 {[%clk 0:00:33]} 35. h6 {[%clk 0:01:10]}  f5+ {[%clk 0:00:17]} 36. Kg5 {[%clk 0:01:06]}  Rg8+ {[%clk 0:00:16]} 37. Kh5 {[%clk 0:01:05]}  Kf6 {[%clk 0:00:15]} 38. h7 {[%clk 0:01:01]}  Rg5+ {[%clk 0:00:12]} 39. Kh4 {[%clk 0:00:58]}  Rg4+ {[%clk 0:00:11]} 40. Kh3 {[%clk 0:00:53]}  Kg7 {[%clk 0:00:10]} 41. Rf1 {[%clk 0:00:49]}  Rf4 {[%clk 0:00:09]} 42. Rxf4 {[%clk 0:00:45]}  exf4 {[%clk 0:00:08]} 43. Kg2 {[%clk 0:00:45]}  Kxh7 {[%clk 0:00:09]} 44. Kf3 {[%clk 0:00:45]}  Kg6 {[%clk 0:00:09]} 45. Kxf4 {[%clk 0:00:45]}  Kf6 {[%clk 0:00:10]} 46. c4 {[%clk 0:00:44]}  Ke6 {[%clk 0:00:10]} 47. a4 {[%clk 0:00:43]}  Kd6 {[%clk 0:00:09]} 48. Kxf5 {[%clk 0:00:43]}  Kc5 {[%clk 0:00:09]} 49. Ke5 {[%clk 0:00:43]}  Kxc4 {[%clk 0:00:10]} 50. Kd6 {[%clk 0:00:44]}  Kb4 {[%clk 0:00:10]} 0-1


[Site "https://www.chess.com"]

[Event "Titled Tuesday Blitz October 5 2021"]
[White "Janaszak, Dawid"]
[Black "Royal, Shreyas"]
[WhiteFideId "1119206"]
[BlackFideId "448869"]
[WhiteElo "2215"]
[BlackElo "1931"]
[Result "0-1"]
[Round "09"]
[TimeControl "180+1"]
[Date "2021.10.05"]
[WhiteClock "0:00:10"]
[BlackClock "0:00:33"]

1. e4 {[%clk 0:03:00]}  e5 {[%clk 0:02:58]} 2. Nf3 {[%clk 0:02:58]}  Nc6 {[%clk 0:02:58]} 3. Bc4 {[%clk 0:02:58]}  Bc5 {[%clk 0:02:58]} 4. c3 {[%clk 0:02:54]}  Nf6 {[%clk 0:02:58]} 5. d3 {[%clk 0:02:54]}  O-O {[%clk 0:02:57]} 6. a4 {[%clk 0:02:54]}  d5 {[%clk 0:02:57]} 7. exd5 {[%clk 0:02:54]}  Nxd5 {[%clk 0:02:58]} 8. O-O {[%clk 0:02:43]}  a6 {[%clk 0:02:56]} 9. Nbd2 {[%clk 0:02:41]}  Bg4 {[%clk 0:02:54]} 10. Ne4 {[%clk 0:02:41]}  Ba7 {[%clk 0:02:52]} 11. h3 {[%clk 0:02:41]}  Bh5 {[%clk 0:02:51]} 12. Ng3 {[%clk 0:02:41]}  Bg6 {[%clk 0:02:51]} 13. Re1 {[%clk 0:02:33]}  f6 {[%clk 0:02:43]} 14. a5 {[%clk 0:02:13]}  Kh8 {[%clk 0:02:41]} 15. Nh4 {[%clk 0:02:08]}  Bf7 {[%clk 0:02:34]} 16. Qg4 {[%clk 0:02:08]}  Nce7 {[%clk 0:02:20]} 17. Nhf5 {[%clk 0:01:58]}  Nxf5 {[%clk 0:02:14]} 18. Nxf5 {[%clk 0:01:59]}  Bg6 {[%clk 0:02:14]} 19. h4 {[%clk 0:01:49]}  Qc8 {[%clk 0:01:58]} 20. Bxd5 {[%clk 0:01:35]}  Bxf5 {[%clk 0:01:58]} 21. Qf3 {[%clk 0:01:33]}  c6 {[%clk 0:01:56]} 22. Bc4 {[%clk 0:01:31]}  Bg4 {[%clk 0:01:53]} 23. Qg3 {[%clk 0:01:31]}  Qf5 {[%clk 0:01:51]} 24. Be3 {[%clk 0:01:28]}  Bb8 {[%clk 0:01:48]} 25. f3 {[%clk 0:01:07]}  Bh5 {[%clk 0:01:45]} 26. Qf2 {[%clk 0:01:08]}  Bd6 {[%clk 0:01:40]} 27. g4 {[%clk 0:01:05]}  Bxg4 {[%clk 0:01:40]} 28. fxg4 {[%clk 0:01:06]}  Qxg4+ {[%clk 0:01:40]} 29. Qg2 {[%clk 0:01:04]}  Qxh4 {[%clk 0:01:40]} 30. Bf2 {[%clk 0:01:02]}  Qh5 {[%clk 0:01:36]} 31. Re3 {[%clk 0:00:59]}  f5 {[%clk 0:01:30]} 32. Rh3 {[%clk 0:00:58]}  Qe8 {[%clk 0:01:31]} 33. Qh2 {[%clk 0:00:53]}  Qg6+ {[%clk 0:01:26]} 34. Kh1 {[%clk 0:00:51]}  e4 {[%clk 0:01:24]} 35. Bg3 {[%clk 0:00:51]}  f4 {[%clk 0:01:23]} 36. Bf2 {[%clk 0:00:45]}  e3 {[%clk 0:01:18]} 37. Rg1 {[%clk 0:00:32]}  Qf5 {[%clk 0:01:06]} 38. Rh5 {[%clk 0:00:31]}  exf2 {[%clk 0:00:55]} 39. Rxf5 {[%clk 0:00:31]}  fxg1=Q+ {[%clk 0:00:55]} 40. Kxg1 {[%clk 0:00:30]}  Rxf5 {[%clk 0:00:56]} 41. d4 {[%clk 0:00:31]}  Rf6 {[%clk 0:00:50]} 42. Bd3 {[%clk 0:00:30]}  g6 {[%clk 0:00:45]} 43. Qh4 {[%clk 0:00:29]}  Raf8 {[%clk 0:00:44]} 44. Kf1 {[%clk 0:00:30]}  f3 {[%clk 0:00:44]} 45. c4 {[%clk 0:00:30]}  f2 {[%clk 0:00:43]} 46. b3 {[%clk 0:00:29]}  Re6 {[%clk 0:00:43]} 47. Kg2 {[%clk 0:00:27]}  Re1 {[%clk 0:00:40]} 48. Bf1 {[%clk 0:00:15]}  Re3 {[%clk 0:00:40]} 49. Qh6 {[%clk 0:00:12]}  Rg3+ {[%clk 0:00:37]} 50. Kh2 {[%clk 0:00:12]}  Rf5 {[%clk 0:00:37]} 51. Be2 {[%clk 0:00:11]}  f1=Q {[%clk 0:00:32]} 52. Bxf1 {[%clk 0:00:12]}  Rh5+ {[%clk 0:00:32]} 53. Qxh5 {[%clk 0:00:11]}  gxh5 {[%clk 0:00:33]} 54. c5 {[%clk 0:00:10]}  Bc7 {[%clk 0:00:33]} 0-1


[Site "https://www.chess.com"]

[Event "Titled Tuesday Blitz October 5 2021"]
[White "Kamsky, Gata"]
[Black "Lewtak, Damian"]
[WhiteFideId "2000024"]
[BlackFideId "1141724"]
[WhiteElo "2603"]
[BlackElo "2203"]
[Result "1-0"]
[Round "09"]
[TimeControl "180+1"]
[Date "2021.10.05"]
[WhiteClock "0:01:51"]
[BlackClock "0:01:31"]

1. e4 {[%clk 0:03:00]}  c5 {[%clk 0:02:59]} 2. Nf3 {[%clk 0:02:58]}  d6 {[%clk 0:02:59]} 3. Bb5+ {[%clk 0:02:54]}  Bd7 {[%clk 0:02:59]} 4. Bxd7+ {[%clk 0:02:54]}  Qxd7 {[%clk 0:02:58]} 5. c4 {[%clk 0:02:54]}  e5 {[%clk 0:02:58]} 6. Nc3 {[%clk 0:02:54]}  Ne7 {[%clk 0:02:55]} 7. d3 {[%clk 0:02:54]}  g6 {[%clk 0:02:49]} 8. Rb1 {[%clk 0:02:54]}  Bg7 {[%clk 0:02:47]} 9. b4 {[%clk 0:02:52]}  b6 {[%clk 0:02:46]} 10. O-O {[%clk 0:02:42]}  O-O {[%clk 0:02:45]} 11. bxc5 {[%clk 0:02:37]}  dxc5 {[%clk 0:02:44]} 12. Be3 {[%clk 0:02:28]}  Nbc6 {[%clk 0:02:44]} 13. Nd5 {[%clk 0:02:26]}  h6 {[%clk 0:02:25]} 14. a4 {[%clk 0:02:24]}  Nxd5 {[%clk 0:02:24]} 15. exd5 {[%clk 0:02:18]}  Ne7 {[%clk 0:02:21]} 16. a5 {[%clk 0:02:17]}  Nc8 {[%clk 0:02:20]} 17. axb6 {[%clk 0:02:16]}  axb6 {[%clk 0:02:20]} 18. Qb3 {[%clk 0:02:15]}  Kh7 {[%clk 0:02:17]} 19. Bd2 {[%clk 0:02:14]}  f5 {[%clk 0:02:04]} 20. Rfe1 {[%clk 0:02:11]}  Ra6 {[%clk 0:01:55]} 21. Nxe5 {[%clk 0:02:08]}  Bxe5 {[%clk 0:01:48]} 22. Rxe5 {[%clk 0:02:08]}  Nd6 {[%clk 0:01:48]} 23. Rbe1 {[%clk 0:02:02]}  Rf7 {[%clk 0:01:46]} 24. Re6 {[%clk 0:02:00]}  b5 {[%clk 0:01:44]} 25. cxb5 {[%clk 0:01:57]}  Rb6 {[%clk 0:01:39]} 26. Qa4 {[%clk 0:01:53]}  Nc8 {[%clk 0:01:31]} 27. Qh4 {[%clk 0:01:51]} 1-0


[Site "https://www.chess.com"]